Cogmind - Beta 11 @@@ ROGUE MODE // 2022.04.06 @ 14:33:22 Player: Infomantis Result: Self-destructed Performance ------------- Evolutions (1) 500 Regions Visited (3) 600 Robots Destroyed (11) 55 Value Destroyed (236) 236 Prototype IDs (0) 0 Alien Tech Used (0) 0 Bonus (0) 0 TOTAL SCORE: 1391 Bonus ------- None Cogmind --------- Core Integrity 304/400 Matter 300/300 Energy 250/250 System Corruption 0% Temperature Cool (0) Movement Walking (120) Location -9/Materials Parts ------- > --- POWER (1) -------- Ion Engine > --- PROPULSION (3) --- Aluminum Leg Aluminum Leg Aluminum Leg > --- UTILITY (3) ------ Small Storage Unit > --- WEAPON (2) ------- Beam Rifle > --- INVENTORY (8) ---- Light Ion Engine Light Treads Aluminum Leg Compact Wheel Compact Wheel Improved Terrain Scanner Seismic Detector Beam Rifle Peak State ------------ > --- POWER ------------ Ion Engine > --- PROPULSION ------- Aluminum Leg Aluminum Leg > --- UTILITY ---------- Small Storage Unit Seismic Detector > --- WEAPON ----------- Beam Rifle Assault Rifle > --- INVENTORY -------- Light Ion Engine Light Treads Wheel Compact Wheel Improved Terrain Scanner Seismic Detector Medium Laser Medium Laser [Rating: 9] Favorites ----------- Power Ion Engine Engine Ion Engine Propulsion Aluminum Leg Leg Aluminum Leg Utility Small Storage Unit Device Seismic Detector Storage Small Storage Unit Weapon Beam Rifle Energy Gun Beam Rifle Ballistic Gun Assault Rifle Build | -11 -10 -10 -9 ------- Run | Scr Mat Min Mat Slots Evolved 2 | . . . 2 Power . | . . . . Propulsion 1 | . . . 1 Utility 1 | . . . 1 Weapon . | . . . . Parts Attached 15 | 7 1 . 7 Power 2 | 1 . . 1 Engine 2 | 1 . . 1 Core . | . . . . Reactor . | . . . . Propulsion 6 | 2 . . 4 Treads . | . . . . Leg 6 | 2 . . 4 Wheel . | . . . . Hover . | . . . . Flight . | . . . . Utility 2 | 2 . . . Device 1 | 1 . . . Storage 1 | 1 . . . Processor . | . . . . Hackware . | . . . . Protection . | . . . . Artifact . | . . . . Weapon 5 | 2 1 . 2 Energy Gun 3 | 1 1 . 1 Energy Cannon . | . . . . Ballistic Gun 2 | 1 . . 1 Ballistic Cannon . | . . . . Launcher . | . . . . Special Weapon . | . . . . Impact Weapon . | . . . . Slashing Weapon . | . . . . Piercing Weapon . | . . . . Special Melee Weapon . | . . . . Unidentified Prototypes . | . . . . Parts Lost 3 | . . . 3 Power 1 | . . . 1 Propulsion . | . . . . Utility 1 | . . . 1 Weapon 1 | . . . 1 Highest Loss Streak 2 | . . . 2 To Critical Strikes . | . . . . Average Slot Usage (%) 84 | . 100 100 73 Engine 11 | . 14 14 10 Leg 29 | . 28 28 30 Device 10 | . 14 14 8 Storage 12 | . 14 14 11 Energy Gun 12 | . 14 14 10 Ballistic Gun 6 | . 14 14 2 Naked Turns . | . . . . Heaviest Build 16 | 15 16 16 16 Greatest Support 30 | 20 20 20 30 Greatest Overweight (x) . | . . . . Average Overweight (x) . | . . . . Largest Inventory Capacity 8 | 8 8 8 8 Average Capacity 7 | 7 8 8 8 Most Carried 8 | 7 8 8 8 Average Carried 7 | 4 7 8 7 Final Capacity 8 | 8 8 8 8 Final Carried 8 | 7 8 8 8 Class Distribution -------------------- 58% | Mutant 41% | Scavenger-Mutant Dominant Class ---------------- Mutant | -10/Materials Mutant | -10/Mines Scavenger-Mutant | -9/Materials Resources | -11 -10 -10 -9 ----------- Run | Scr Mat Min Mat Matter Collected 406 | 268 30 6 102 Remotely . | . . . . Salvage Created 301 | 39 34 56 172 Parts 21 | 7 3 2 9 Haulers Intercepted . | . . . . Recyclers Shooed . | . . . . Parts Field Recycled . | . . . . Retrieved Matter . | . . . . Parts Self-Destructed . | . . . . Prevented . | . . . . Kills | -11 -10 -10 -9 ------- Run | Scr Mat Min Mat Combat Hostiles Destroyed 9 | . 2 1 6 Guns 9 | . 2 1 6 Classes Destroyed 3 | 1 1 1 . Tunneler 2 | 2 . . . Swarmer 5 | . 2 . 3 Grunt 4 | . . 1 3 Best Kill Streak 3 | 2 2 1 3 Combat Bots Only 3 | . 2 1 3 Max Kills in Single Turn 1 | 1 1 1 1 Gunslinging . | . . . . Exploded . | . . . . Melee . | . . . . Uniques/NPCs Destroyed . | . . . . Combat | -11 -10 -10 -9 -------- Run | Scr Mat Min Mat Damage Taken 545 | . 33 26 486 Core 106 | . . 10 96 Absorbed by Shields . | . . . . Core Remaining (%) 98 | 100 . 96 . Volleys Fired 38 | 2 4 2 30 Largest 2 | 2 2 2 2 Hottest 76 | 70 76 76 76 Shots Fired 63 | 4 8 4 47 Gun 63 | 4 8 4 47 Cannon . | . . . . Launcher . | . . . . Special . | . . . . Kinetic 25 | 2 4 2 17 Thermal 38 | 2 4 2 30 Explosive . | . . . . Electromagnetic . | . . . . Robot Hit Streak 6 | 3 2 6 6 Robot Miss Streak 3 | . 3 . 3 Penetration Max . | . . . . Secondary Targets 1 | . . . 1 Max Gunslinging Chain 1 | . . . 1 Shots Hit Robots 38 | 3 3 4 28 Core Hits 16 | 2 2 3 9 Critical Kills . | . . . . Critical Parts Destroyed . | . . . . Critical Strikes 1 | . . . 1 Burn 1 | . . . 1 Melee Attacks . | . . . . Impact . | . . . . Slashing . | . . . . Piercing . | . . . . Sneak Attacks . | . . . . Combat Hostiles . | . . . . Follow-up Attacks . | . . . . Damage Inflicted 533 | 36 38 56 403 Guns 523 | 36 38 56 393 Cannons . | . . . . Explosions . | . . . . Melee . | . . . . Ramming 10 | . . . 10 Kinetic 180 | 12 24 27 117 Thermal 343 | 24 14 29 276 Explosive . | . . . . Electromagnetic . | . . . . Impact . | . . . . Slashing . | . . . . Piercing . | . . . . Highest Corruption . | . . . . Average Corruption . | . . . . Corruption Purged . | . . . . Corruption Blocked . | . . . . Overload Shots . | . . . . Overflow Damage 1 | . . . 1 Projectiles . | . . . . Explosions . | . . . . Melee 1 | . . . 1 Knockbacks . | . . . . Impact . | . . . . Kinetic . | . . . . Secondary . | . . . . Self-Inflicted Damage . | . . . . Shots . | . . . . Rammed . | . . . . Targets Rammed 5 | . . . 5 Kicked 5 | . . . 5 Crushed . | . . . . Highest Temperature 184 | 9 60 39 184 Average Temperature 51 | 6 30 21 60 Received Heat Transfer 225 | . . 15 210 Siege Activations . | . . . . Robots Corrupted . | . . . . Combat Hostiles . | . . . . Parts Fried . | . . . . Impact Corruptions 1 | . . . 1 Robots Melted . | . . . . Combat Hostiles . | . . . . Parts Melted 3 | . . . 3 Heat Transferred 962 | 74 37 74 777 Parts Sabotaged . | . . . . Parts Stolen . | . . . . Parts Stripped . | . . . . Power Chain Reactions . | . . . . Missiles Intercepted . | . . . . Alert | -11 -10 -10 -9 ------- Run | Scr Mat Min Mat Peak Influence 116 | 10 101 69 116 Initial 39 | . 6 39 26 Average 40 | 2 33 44 48 Maximum Alert Level . | . . . . Low Security (%) 100 | 100 100 100 100 Level 1 . | . . . . Level 2 . | . . . . Level 3 . | . . . . Level 4 . | . . . . Level 5 . | . . . . High Security . | . . . . Max Security . | . . . . Squads Dispatched . | . . . . Investigation . | . . . . Extermination . | . . . . Reinforcement . | . . . . Assault . | . . . . Garrison . | . . . . Intercept . | . . . . Searches Triggered . | . . . . Construction Impeded . | . . . . Haulers Reinforced . | . . . . Active Scanning Responses . | . . . . Cargo Convoy Interrupts . | . . . . Stealth | -11 -10 -10 -9 --------- Run | Scr Mat Min Mat Distress Signals . | . . . . Communications Jammed . | . . . . Distress Signals . | . . . . Times Spotted 18 | . 5 2 11 Peak Tracking Total 4 | . 4 2 3 Tactical Retreats 2 | . 1 . 1 Traps | -11 -10 -10 -9 ------- Run | Scr Mat Min Mat Traps Triggered 2 | . . . 2 Indirectly . | . . . . Trap Hack Attempts . | . . . . Triggered . | . . . . Disarmed . | . . . . Reprogrammed . | . . . . Reused . | . . . . Traps Extracted . | . . . . Installed . | . . . . Triggered . | . . . . Machines | -11 -10 -10 -9 ---------- Run | Scr Mat Min Mat Machines Disabled 1 | . . . 1 Max in Single Turn 1 | . . . 1 Machines Sabotaged . | . . . . Garrisons Compromised . | . . . . Overloaded Fab Kills . | . . . . Hacking | -11 -10 -10 -9 --------- Run | Scr Mat Min Mat Machines Accessed 4 | . 2 . 2 Terminals 4 | . 2 . 2 Fabricators . | . . . . Repair Stations . | . . . . Recycling Units . | . . . . Scanalyzers . | . . . . Garrison Access . | . . . . Total Hacks 8 | . 2 . 6 Successful 5 | . 2 . 3 Failed 3 | . . . 3 Catastrophic . | . . . . Database Lockouts . | . . . . Manual 5 | . 1 . 4 Terminals 8 | . 2 . 6 Fabricators . | . . . . Repair Stations . | . . . . Recycling Units . | . . . . Scanalyzers . | . . . . Garrison Access . | . . . . Terminal Hacks 4 | . 2 . 2 Branch Access Points 1 | . 1 . . Emergency Access Points 1 | . 1 . . Unreport Threat 1 | . . . 1 Reinforcement Status 1 | . . . 1 Fabricator Hacks . | . . . . Repair Station Hacks . | . . . . Recycling Unit Hacks . | . . . . Scanalyzer . | . . . . Garrison Access Hacks . | . . . . Unauthorized Hacks 1 | . . . 1 Terminals 1 | . . . 1 Botnet 1 | . . . 1 Fabricators . | . . . . Repair Stations . | . . . . Recycling Units . | . . . . Scanalyzers . | . . . . Garrison Access . | . . . . Data Cores Recovered . | . . . . Used . | . . . . Hacking Detections 2 | . . . 2 Full Trace Events . | . . . . Feedback Events . | . . . . Feedback Blocked . | . . . . Robot Schematics Acquired . | . . . . Robots Built . | . . . . Authchips . | . . . . Time . | . . . . Total Robot Build Rating . | . . . . Part Schematics Acquired . | . . . . Parts Built . | . . . . Authchips . | . . . . Time . | . . . . Total Part Build Rating . | . . . . Parts Repaired . | . . . . Time . | . . . . Parts Recycled . | . . . . Recycled Matter . | . . . . Retrieved Matter . | . . . . Retrieved Components . | . . . . Parts Scanalyzed . | . . . . Part Schematics Acquired . | . . . . Parts Damaged . | . . . . Bothacking | -11 -10 -10 -9 ------------ Run | Scr Mat Min Mat Used RIF Installer . | . . . . Robots Hacked . | . . . . Non-combat . | . . . . Combat . | . . . . Robot Hacks Applied . | . . . . Relay Couplers Released . | . . . . Fabnet Peak Effective % . | . . . . Robots Rewired . | . . . . Allies Hacked . | . . . . Hacks Repelled . | . . . . Allies | -11 -10 -10 -9 -------- Run | Scr Mat Min Mat Total Allies . | . . . . Largest Group . | . . . . Highest-Rated Group . | . . . . Highest-Rated Ally . | . . . . Total Orders . | . . . . Ally Attacks . | . . . . Total Damage . | . . . . Kills . | . . . . Allies Corrupted . | . . . . Allies Melted . | . . . . Intel | -11 -10 -10 -9 ------- Run | Scr Mat Min Mat Robot Analysis Total . | . . . . Derelict Logs Recovered 2 | . . 2 . Drone Launches . | . . . . Drone Recoveries . | . . . . Exploration | -11 -10 -10 -9 ------------- Run | Scr Mat Min Mat Turns Passed 1142 | 82 273 138 649 Spaces Moved 826 | 52 215 103 456 Core 6 | 6 . . . Treads . | . . . . Legs 820 | 46 215 103 456 Wheels . | . . . . Hover . | . . . . Flight . | . . . . Fastest Speed 50 | 50 120 120 120 Average Speed 119 | 111 120 120 120 Slowest Speed 120 | 120 120 120 120 Overloaded Moves . | . . . . Propulsion Burnouts . | . . . . Robots Hopped . | . . . . Cave-ins Triggered . | . . . . Exploration Rate (%) 29 | 4 39 36 40 Regions Visited 3 Branch Regions 1 Pre-discovered Areas 1 | . . 1 . Known Exits Taken 1 | . 1 . . Unknown Exits Taken 2 | 1 . 1 . Scrap Searched . | . . . . Spaces Dug . | . . . . Terrain Destroyed . | . . . . Melee . | . . . . Projectile . | . . . . AOE . | . . . . Terrain Rammed . | . . . . Walls Destroyed . | . . . . Machines Disabled . | . . . . Actions | -11 -10 -10 -9 --------- Run | Scr Mat Min Mat Total 915 | 68 226 113 508 Wait 18 | . 1 9 8 Move 823 | 51 214 102 456 Hop . | . . . . Pick Up 11 | 8 3 . . Fast Attach 9 | 6 . . 3 Attach 2 | 1 . . 1 Detach . | . . . . Swap 4 | . 1 . 3 Drop 5 | . 3 . 2 Fire 38 | 2 4 2 30 Melee . | . . . . Ram . | . . . . Kick 5 | . . . 5 Crush . | . . . . Escape Stasis . | . . . . Rewire . | . . . . Trap . | . . . . Miscellaneous . | . . . . Route ------- -11/Scrapyard -10/Materials (discovered 2 exits: *Min x2) -10/Mines -9/Materials (discovered 2 exits: [*Mat] / [*Min]) History --------- Turn | Location | Event 3 | -11/Scrapyard | Discovered new exit (range 16) 83 | -11/Scrapyard | Entered Materials 287 | -10/Materials | Identified exit to Mines 306 | -10/Materials | Build established: Mutant 356 | -10/Materials | Entered Mines 371 | -10/Mines | Learned Materials terminal intel 390 | -10/Mines | Met a Derelict bent on vengeance 394 | -10/Mines | Learned location of Zion (-7) 461 | -10/Mines | Discovered new exit (range 7) 494 | -10/Mines | Entered Materials 494 | -9/Materials | Evolved 2 slots: Propulsion x1, Utility x1 495 | -9/Materials | Loaded intel: 12 terminal locations 748 | -9/Materials | Discovered new exit (range 16) 943 | -9/Materials | Discovered new exit (range 4) 973 | -9/Materials | Build established: Scavenger-Mutant 1143 | -9/Materials | Self-destructed Last Messages --------------- 00692_ G-34 Mercenary overheating. 00693_ Destroyed Aluminum Leg. 00693_ K-01 Serf collects debris. 00694_ G-34 Mercenary heat damages Broken Aluminum Leg. 00694_ G-34 Mercenary overheating. 00695_ G-34 Mercenary heat damages Broken Aluminum Leg. 00695_ G-34 Mercenary overheating. 00695_ G-34 Mercenary destroyed. 00696_ K-01 Serf collects debris. 00705_ Dropped Aluminum Leg. 00707_ Acquired 9 matter. 00707_ K-01 Serf collects debris. 00748_ EXIT=FOUND 00753_ K-01 Serf collects debris. 00856_ Acquired 1 matter. 00878_ K-01 Serf collects debris. 00943_ EXIT=FOUND 01005_ Seismic Detector destroyed. 01020_ Kicked W-16 Scout out of the way. 01082_ R-06 Scavenger collects Wheel. Map ----- +----------------------------------------------------+ | ???????# #?????????????#""" # #???????? | | ???????# #?????????????#""" #######+##+#???????? | | ???????# #?????????????# #???# #???????? | | ######## #?????????????###+####???# #???????? | | # #??###????????# #????# """ #???????? | | # #### ########## #????# """ #??###### | | % + +% + % #????# """ #?##!!!!# | | ##### ### #????# #?#! ! | | ! #???# #?# #????########?#! ! | | ! #???# #?### ###??????????????# | | #???# #???# #????????????????# | | #???# #???# #????????????????# | | #???# #???# #????????????????# | | ###+####???# #???# #????????????????# | | # ######+#####+####### #????????????????# | | # #????????????????# | | # #########??????????# ## | | # #"""""""#??????????# +? | | # ########### ### #" |"| "#??????????# #? | | #####?????#######+### #" "##+######### #? | | ??????????# [ # #? | | ??"""?????? [[[ # < #? | | ??"T"?????? """ [[[ # #? | | ??????????# """ [[ # ## ##+######### #? | | ??????????+ """ # ##########??????????# #? | | ??????????# # /@ #??????##### #? | | ??????????# + # #??????+ #? | | ??????????# # # #??????### #? | | ??????????############### #????????# #? | | ????????????????????????###+######????????# ## | | ??????????????????????????# #????#+######## | | ??????????????????????????# #????# | | ???????????????????? ?????# #????# | | ???????????????????? ?????# ?????# | | ????????????????????? ????# ###### | | ???????????????????# ?]???# #### | | ????????????????????? ??# ###+##+######## #??? | | ???????????????????####/### # % #????# #??? | | ???????????????????# + " #?####+#### | | ??????????????????## # % """" #?# | | ??????????????????? # """"" +?# !] | | ??????????????????????????# + """"" #?# ] | | ??????????????????????????# # """ #?# | | ??????????????????????????# # #?# | | ??????????????????????????# # #?# | | ??????????????????????????# [ # #?# | | ??????????????????????????# ##########?# | | ??????????????????????????# #??????????########? | | ??????????????????????????+ #??????????????????? | | ??????????????????????????# #??????????????????? | +----------------------------------------------------+ Best States ------------- Heat Dissipation 28 Energy Generation 10 Energy Capacity 250 Matter Stores 300 Matter Capacity 300 Sight Range 16 Terrain Scan Density 10 Evasion (%) 55 Item Schematics ----------------- None Robot Schematics ------------------ None Fabricated ------------ Nothing Alien Tech Used ----------------- None Achievements -------------- None Challenges ------------ None Game ------ Seed DeliveryLegDatajack Manual? 1 Play Time 00:09:42 Cumulative 117.3 hours Start 2022.04.06 @ 14:26:48 End 2022.04.06 @ 14:33:22 Sessions 1 Manual Loads 0 Difficulty Rogue Special Mode None Game No. 89 Rogue 72 Adventurer 6 Explorer 11 Win Type - Total 8 Types 5/0/1/1/0/0/1/0/0 Lore% 71 Gallery% 76 Achievement% 60 Wizard Run 0 Options --------- ASCII 0 Keyboard 0 Movement Numpad Keybinds 0 Fullscreen 1 Font 12/Fuzzy Map View 83x54 Tactical HUD 1 Map Filters NONE Filters NONE Steam 1 RUN: 573fbb24-2fd6-4645-8cc7-dbd336466e4d